lending/lending_fUSD_20250808
["ID","MTS","AMOUNT","RATE_DAILY","PERIOD"]
[378008938,1754665876691,-400.0,0.00019595,2]
[378008939,1754665876700,-435.51,0.00019595,2]
[378008940,1754665876710,-400.0,0.00019595,2]
[378008941,1754665876720,-400.0,0.00019595,2]
[378008942,1754665876730,-1056.5,0.00019595,2]
[378008943,1754665876741,-506.54,0.00019595,2]
[378008944,1754665876751,-640.77,0.00019595,2]
[378008945,1754665876760,-409.28,0.00019595,2]
[378008946,1754665876770,-605.96,0.00019595,2]
[378008947,1754665876780,-426.37,0.00019595,2]
[378008948,1754665876790,-400.0,0.00019595,2]
[378008949,1754665876800,-400.0,0.00019595,2]
[378008950,1754665876810,-400.0,0.00019595,2]
[378008951,1754665876824,-1344.72,0.00019595,2]
[378008952,1754665876834,-400.0,0.00019595,2]
[378008953,1754665876845,-400.0,0.00019595,2]
[378008954,1754665876855,-400.0,0.00019595,2]
[378008955,1754665876864,-400.0,0.00019595,2]
[378008956,1754665876874,-741.27,0.00019595,2]
[378008957,1754665876884,-419.32,0.00019595,2]
[378008958,1754665876894,-1048.94,0.00019595,2]
[378008959,1754665876904,-421.24,0.00019595,2]
[378008960,1754665876914,-400.0,0.00019595,2]
[378008961,1754665876924,-636.47,0.00019595,2]
[378008962,1754665876933,-1559.71,0.00019595,2]
[378008963,1754665876943,-400.0,0.00019595,2]
[378008964,1754665876953,-488.29,0.00019595,2]
[378008965,1754665876963,-582.23,0.00019595,2]
[378008966,1754665876973,-400.0,0.00019595,2]
[378008967,1754665876983,-1131.21,0.00019595,2]
[378008968,1754665876993,-400.0,0.00019595,2]
[378008969,1754665877004,-400.0,0.00019595,2]
[378008970,1754665877013,-400.0,0.00019595,2]
[378008971,1754665877024,-498.79,0.00019595,2]
[378008972,1754665877034,-412.19,0.00019595,2]
[378008973,1754665877044,-1493.88,0.00019595,2]
[378008974,1754665877054,-478.7,0.00019595,2]
[378008975,1754665877065,-400.0,0.00019595,2]
[378008976,1754665877268,-400.0,0.00019595,2]
[378008977,1754665877279,-400.0,0.00019595,2]
[378008978,1754665877290,-400.0,0.00019595,2]
[378008979,1754665877302,-400.0,0.00019595,2]
[378008980,1754665877312,-878.26,0.00019595,2]
[378008981,1754665877323,-852.63,0.00019595,2]
[378008982,1754665877331,-400.0,0.00019595,2]
[378008983,1754665877340,-400.0,0.00019595,2]
[378008984,1754665877349,-400.0,0.00019595,2]
[378008985,1754665877359,-1151.07,0.00019595,2]
[378008986,1754665877369,-400.0,0.00019595,2]
[378008987,1754665877379,-400.0,0.00019595,2]
[378008988,1754665877390,-400.0,0.00019595,2]
[378008989,1754665877399,-400.0,0.00019595,2]
[378008990,1754665877408,-400.0,0.00019595,2]
[378008991,1754665877418,-1189.03,0.00019595,2]
[378008992,1754665877427,-400.0,0.00019595,2]
[378008993,1754665877437,-400.0,0.00019595,2]
[378008994,1754665877446,-400.0,0.00019595,2]
[378008995,1754665877455,-400.0,0.00019595,2]
[378008996,1754665877465,-400.0,0.00019595,2]
[378008997,1754665877474,-400.0,0.00019595,2]
[378008998,1754665877483,-2092.47,0.00019595,2]
[378008999,1754665877493,-400.0,0.00019595,2]
[378009000,1754665877502,-400.0,0.00019595,2]
[378009001,1754665877512,-400.0,0.00019595,2]
[378009002,1754665877521,-400.0,0.00019595,2]
[378009003,1754665877531,-496.27,0.00019595,2]
[378009004,1754665877540,-454.2,0.00019595,2]
[378009005,1754665877549,-400.0,0.00019595,2]
[378009006,1754665877558,-1142.29,0.00019595,2]
[378009007,1754665877570,-670.13,0.00019595,2]
[378009008,1754665877579,-2302.35,0.00019595,2]
[378009009,1754665877588,-662.54,0.00019595,2]
[378009010,1754665877597,-400.0,0.00019595,2]
[378009011,1754665877607,-400.0,0.00019595,2]
[378009012,1754665877616,-400.0,0.00019595,2]
[378009013,1754665877626,-605.62,0.00019595,2]
[378009014,1754665877635,-432.65,0.00019595,2]
[378009015,1754665877648,-699.18,0.00019595,2]
[378009016,1754665877657,-454.4,0.00019595,2]
[378009017,1754665877666,-400.0,0.00019595,2]
[378009018,1754665877675,-460.62,0.00019595,2]
[378009019,1754665877685,-400.0,0.00019595,2]
[378009020,1754665877695,-400.0,0.00019595,2]
[378009021,1754665877705,-400.0,0.00019595,2]
[378009022,1754665877715,-400.0,0.00019595,2]
[378009023,1754665877725,-1003.64,0.00019595,2]
[378009024,1754665877735,-475.98,0.00019595,2]
[378009025,1754665877744,-400.0,0.00019595,2]
[378009026,1754665877754,-450.88,0.00019595,2]
[378009027,1754665877764,-428.3,0.00019595,2]
[378009028,1754665877773,-485.3,0.00019595,2]
[378009029,1754665877783,-1113.86,0.00019595,2]
[378009030,1754665877792,-833.67,0.00019595,2]
[378009031,1754665877802,-400.92,0.00019595,2]
[378009032,1754665877811,-400.0,0.00019595,2]
[378009033,1754665877823,-400.0,0.00019595,2]
[378009034,1754665877832,-826.02,0.00019595,2]
[378009035,1754665877841,-490.97,0.00019595,2]
[378009036,1754665877850,-684.28,0.00019595,2]
[378009037,1754665877860,-1125.99,0.00019595,2]
[378009038,1754665877869,-414.74,0.00019595,2]
[378009039,1754665877879,-576.92,0.00019595,2]
[378009040,1754665877888,-504.74,0.00019595,2]
[378009041,1754665877897,-400.0,0.00019595,2]
[378009042,1754665877907,-794.31,0.00019595,2]
[378009043,1754665877916,-400.0,0.00019595,2]
[378009044,1754665877925,-400.0,0.00019595,2]
[378009045,1754665877934,-1644.44,0.00019595,2]
[378009046,1754665877943,-400.0,0.00019595,2]
[378009047,1754665877952,-400.0,0.00019595,2]
[378009048,1754665877962,-1479.1,0.00019595,2]
[378009049,1754665877971,-400.0,0.00019595,2]
[378009050,1754665877981,-1392.26,0.00019595,2]
[378009051,1754665877995,-487.25,0.00019595,2]
[378009052,1754665878003,-400.0,0.00019595,2]
[378009053,1754665878013,-827.27,0.00019595,2]
[378009054,1754665878022,-1694.31,0.00019595,2]
[378009055,1754665878031,-3663.05,0.00019595,2]
[378009056,1754665878040,-1134.91,0.00019595,2]
[378009057,1754665878050,-569.53,0.00019595,2]
[378009058,1754665878059,-400.0,0.00019595,2]
[378009059,1754665878069,-400.0,0.00019595,2]
[378009060,1754665878079,-1604.55,0.00019595,2]
[378009061,1754665878089,-400.0,0.00019595,2]
[378009062,1754665878098,-1726.2,0.00019595,2]
[378009063,1754665878107,-400.0,0.00019595,2]
[378009064,1754665878117,-1635.03,0.00019595,2]
[378009065,1754665878127,-4209.07,0.00019595,2]
[378009066,1754665878136,-7336.42,0.00019595,2]
[378009067,1754665878146,-400.0,0.00019595,2]
[378009068,1754665878155,-474.76,0.00019595,2]
[378009069,1754665878165,-400.0,0.00019595,2]
[378009070,1754665878174,-1402.19,0.00019595,2]
[378009071,1754665878183,-1230.28,0.00019595,2]
[378009072,1754665878193,-2130.07,0.00019595,2]
[378009073,1754665878202,-400.0,0.00019595,2]
[378009074,1754665878211,-168.72504199,0.00019595,2]
[378009075,1754665878220,-400.0,0.00019595,2]
[378009076,1754665878230,-2025.14,0.00019595,2]
[378009077,1754665878239,-628.07,0.00019595,2]
[378009078,1754665878248,-688.33,0.00019595,2]
[378009079,1754665878258,-400.0,0.00019595,2]
[378009080,1754665878267,-400.0,0.00019595,2]
[378009081,1754665878277,-612.57,0.00019595,2]
[378009082,1754665878288,-3210.22,0.00019595,2]
[378009083,1754665878297,-483.07,0.00019595,2]
[378009084,1754665878307,-531.47,0.00019595,2]
[378009085,1754665878318,-400.0,0.00019595,2]
[378009086,1754665878328,-5188.28,0.00019595,2]
[378009087,1754665878338,-1541.01,0.00019595,2]
[378009088,1754665878348,-5876.12,0.00019595,2]
[378009089,1754665878358,-400.0,0.00019595,2]
[378009090,1754665878367,-513.95,0.00019595,2]
[378009091,1754665878376,-400.0,0.00019595,2]
[378009092,1754665878386,-400.0,0.00019595,2]
[378009093,1754665878395,-420.86,0.00019595,2]
[378009094,1754665878405,-1585.22,0.00019595,2]
[378009095,1754665878414,-400.0,0.00019595,2]
[378009096,1754665878424,-4259.87,0.00019595,2]
[378009097,1754665878433,-400.0,0.00019595,2]
[378009098,1754665878442,-8121.87,0.00019595,2]
[378009099,1754665878451,-249.7801499,0.00019595,2]
[378009100,1754665878460,-1476.09,0.00019595,2]
[378009101,1754665878470,-1121.8,0.00019595,2]
[378009102,1754665878479,-644.13,0.00019595,2]
[378009103,1754665878489,-575.11,0.00019595,2]
[378009104,1754665878498,-6057.34,0.00019595,2]
[378009105,1754665878507,-619.05,0.00019595,2]
[378009106,1754665878516,-528.46,0.00019595,2]
[378009107,1754665878526,-6693.11,0.00019595,2]
[378009108,1754665878535,-1345.7,0.00019595,2]
[378009109,1754665878544,-1709.16,0.00019595,2]
[378009110,1754665878554,-1291.02,0.00019595,2]
[378009111,1754665878563,-1813.43,0.00019595,2]
[378009112,1754665878572,-422.85,0.00019595,2]
[378009113,1754665878583,-2167.73,0.00019595,2]
[378009114,1754665878592,-400.0,0.00019595,2]
[378009115,1754665878602,-652.0,0.00019595,2]
[378009116,1754665878611,-400.0,0.00019595,2]
[378009117,1754665878620,-400.0,0.00019595,2]
[378009118,1754665878630,-1469.15,0.00019595,2]
[378009119,1754665878641,-646.71,0.00019595,2]
[378009120,1754665878652,-1310.0,0.00019595,2]
[378009121,1754665878661,-563.16,0.00019595,2]
[378009122,1754665878671,-824.19,0.00019595,2]
[378009123,1754665878680,-609.49,0.00019595,2]
[378009124,1754665878690,-400.0,0.00019595,2]
[378009125,1754665878699,-9554.86,0.00019595,2]
[378009126,1754665878708,-1273.12,0.00019595,2]
[378009127,1754665878718,-1930.11,0.00019595,2]
[378009128,1754665878727,-400.0,0.00019595,2]
[378009129,1754665878739,-4202.88,0.00019595,2]
[378009130,1754665878749,-469.3,0.00019595,2]
[378009131,1754665878758,-6401.52,0.00019595,2]
[378009132,1754665878768,-400.0,0.00019595,2]
[378009133,1754665878777,-400.0,0.00019595,2]
[378009134,1754665878787,-643.68,0.00019595,2]
[378009135,1754665878797,-400.0,0.00019595,2]
[378009136,1754665878808,-326.86674498,0.00019595,2]
[378009137,1754665878819,-1810.41,0.00019595,2]
[378009138,1754665878829,-1108.42,0.00019595,2]
[378009139,1754665878839,-569.88,0.00019595,2]
[378009140,1754665878849,-400.0,0.00019595,2]
[378009141,1754665878858,-828.43,0.00019595,2]
[378009142,1754665878868,-5768.73,0.00019595,2]
[378009143,1754665878878,-498.93,0.00019595,2]
[378009144,1754665878887,-603.11,0.00019595,2]
[378009145,1754665878896,-5374.73,0.00019595,2]
[378009146,1754665878906,-400.0,0.00019595,2]
[378009147,1754665878915,-5381.91,0.00019595,2]
[378009148,1754665878925,-817.89,0.00019595,2]
[378009149,1754665878935,-514.29,0.00019595,2]
[378009150,1754665878944,-3846.97,0.00019595,2]
[378009151,1754665878954,-1228.87,0.00019595,2]
[378009152,1754665878964,-400.0,0.00019595,2]
[378009153,1754665878973,-400.0,0.00019595,2]
[378009154,1754665878982,-400.0,0.00019595,2]
[378009155,1754665878991,-4234.54,0.00019595,2]
[378009156,1754665879000,-400.0,0.00019595,2]
[378009157,1754665879010,-887.14,0.00019595,2]
[378009158,1754665879019,-400.0,0.00019595,2]
[378009159,1754665879029,-500.0,0.00019621,2]
[378009160,1754665879038,-1000.0,0.00019621,2]
[378009161,1754665879047,-500.0,0.00019621,2]
[378009162,1754665879057,-436.1104014,0.00019621,2]
[378009163,1754665879067,-1000.0,0.00019621,2]
[378009164,1754665879076,-1000.0,0.00019621,2]
[378009165,1754665879086,-211.29152775,0.00019621,2]
[378009166,1754665879096,-1000.0,0.00019621,2]
[378009167,1754665879105,-279.86,0.00019636,2]
[378009168,1754665879115,-255.67,0.00019641,2]
[378009169,1754665879124,-1766.41291396,0.00019642,2]
[378009170,1754665879134,-914.1,0.00019647,2]
[378009171,1754665879144,-540.76206,0.0001966,2]
[378009172,1754665879153,-151.0,0.000197,2]
[378009173,1754665879163,-200.631943,0.000197,2]
[378009174,1754665879172,-399.572307,0.000197,2]
[378009175,1754665879182,-399.572307,0.000197,2]
[378009176,1754665879191,-205.32114,0.000197,2]
[378009177,1754665879200,-205.32114,0.000197,2]
[378009178,1754665879210,-500.0,0.000197,2]
[378009179,1754665879220,-233.0,0.0001971,2]
[378009180,1754665879229,-600.0,0.00019724,2]
[378009181,1754665879239,-229.71,0.00019724,2]
[378009182,1754665879248,-1855.69010095,0.00019725,2]
[378009183,1754665879257,-156.587,0.00019726,2]
[378009184,1754665879267,-150.0,0.00019735,2]
[378009185,1754665879276,-1214.28032899,0.00019739,2]
[378009186,1754665879286,-500.0,0.00019757,2]
[378009187,1754665879295,-500.0,0.00019757,2]
[378009188,1754665879304,-500.0,0.00019757,2]
[378009189,1754665879314,-500.0,0.00019757,2]
[378009190,1754665879323,-500.0,0.00019757,2]
[378009191,1754665879333,-500.0,0.00019757,2]
[378009192,1754665879342,-500.0,0.00019757,2]
[378009193,1754665879351,-500.0,0.00019757,2]
[378009194,1754665879360,-500.0,0.00019757,2]
[378009195,1754665879370,-500.0,0.00019757,2]
[378009196,1754665879379,-500.0,0.00019757,2]
[378009197,1754665879389,-738.0,0.00019757,2]
[378009198,1754665879398,-500.0,0.00019757,2]
[378009199,1754665879407,-500.0,0.00019757,2]
[378009200,1754665879417,-500.0,0.00019757,2]
[378009201,1754665879427,-500.0,0.00019757,2]
[378009202,1754665879436,-500.0,0.00019757,2]
[378009203,1754665879446,-500.0,0.00019757,2]
[378009204,1754665879455,-500.0,0.00019757,2]
[378009205,1754665879464,-500.0,0.00019757,2]
[378009206,1754665879474,-500.0,0.00019757,2]
[378009207,1754665879483,-500.0,0.00019757,2]
[378009208,1754665879493,-839.0,0.00019757,2]
[378009209,1754665879502,-500.0,0.00019757,2]
[378009210,1754665879511,-500.0,0.00019757,2]
[378009211,1754665879521,-500.0,0.00019757,2]
[378009212,1754665879530,-500.0,0.00019757,2]
[378009213,1754665879539,-500.0,0.00019757,2]
[378009214,1754665879549,-648.0,0.00019757,2]
[378009215,1754665879558,-914.1,0.00019757,2]
[378009216,1754665879568,-150.0,0.00019762,2]
[378009217,1754665879577,-150.0,0.00019764,2]
[378009218,1754665879587,-150.0,0.00019765,2]
[378009219,1754665879595,-150.0,0.00019766,2]
[378009220,1754665879605,-150.0,0.00019766,2]
[378009221,1754665879615,-150.0,0.00019775,2]
[378009222,1754665879626,-150.0,0.00019776,2]
[378009223,1754665879635,-179.01,0.0001979,2]
[378009224,1754665879648,-392.55,0.00019807,2]
[378009225,1754665879657,-1944.96728793,0.00019809,2]
[378009226,1754665879667,-150.0,0.00019815,2]
[378009227,1754665879676,-253.951013,0.00019821,2]
[378009228,1754665879687,-151.0,0.00019821,2]
[378009229,1754665879697,-263.636281,0.00019821,2]
[378009230,1754665879707,-3422.57,0.00019821,2]
[378009231,1754665879718,-658.93,0.00019821,2]
[378009232,1754665879727,-1660.03,0.00019821,2]
[378009233,1754665879736,-3123.08,0.00019821,2]
[378009234,1754665879746,-2135.1,0.00019821,2]
[378009235,1754665879755,-4731.17,0.00019821,2]
[378009236,1754665879765,-4731.17,0.00019821,2]
[378009237,1754665879774,-1890.97,0.00019821,2]
[378009238,1754665879784,-4802.61,0.00019821,2]
[378009239,1754665879794,-1946.85,0.00019821,2]
[378009240,1754665879803,-1274.17,0.00019821,2]
[378009241,1754665879812,-2174.26,0.00019821,2]
[378009242,1754665879823,-475.7,0.00019821,2]
[378009243,1754665879833,-400.0,0.00019821,2]
[378009244,1754665879842,-4446.0,0.00019821,2]
[378009245,1754665879851,-1915.8,0.00019821,2]
[378009246,1754665879860,-702.74,0.00019821,2]
[378009247,1754665879870,-400.0,0.00019821,2]
[378009248,1754665879879,-4942.02,0.00019821,2]
[378009249,1754665879888,-963.1,0.00019821,2]
[378009250,1754665879897,-2052.92,0.00019821,2]
[378009251,1754665879907,-585.33,0.00019821,2]
[378009252,1754665879916,-5833.49,0.00019821,2]
[378009253,1754665879926,-1677.05,0.00019821,2]
[378009254,1754665879935,-3970.95,0.00019821,2]
[378009255,1754665879945,-2534.52,0.00019821,2]
[378009256,1754665879955,-450.19,0.00019821,2]
[378009257,1754665879964,-6324.18,0.00019821,2]
[378009258,1754665879973,-1755.03,0.00019821,2]
[378009259,1754665879982,-150.0,0.00019822,2]
[378009260,1754665879991,-150.0,0.00019829,2]
[378009261,1754665880000,-151.0,0.00019839,2]
[378009262,1754665880010,-151.0,0.00019839,2]
[378009263,1754665880020,-406.416501,0.00019839,2]
[378009264,1754665880030,-406.416507,0.00019839,2]
[378009265,1754665880044,-277.35679052,0.00019848,2]
[378009266,1754665880053,-151.0,0.00019849,2]
[378009267,1754665880063,-151.0,0.00019849,2]
[378009268,1754665880074,-495.89,0.00019849,2]
[378009269,1754665880083,-400.0,0.00019849,2]
[378009270,1754665880092,-400.0,0.00019849,2]
[378009271,1754665880101,-400.0,0.00019849,2]
[378009272,1754665880110,-458.95,0.00019849,2]
[378009273,1754665880119,-400.0,0.00019849,2]
[378009274,1754665880128,-400.0,0.00019849,2]
[378009275,1754665880138,-565.26,0.00019849,2]
[378009276,1754665880147,-432.45,0.00019849,2]
[378009277,1754665880157,-400.0,0.00019849,2]
[378009278,1754665880166,-465.44,0.00019849,2]
[378009279,1754665880175,-399.2586098,0.00019849,2]
[378009280,1754665880185,-400.0,0.00019849,2]
[378009281,1754665880194,-400.0,0.00019849,2]
[378009282,1754665880204,-400.0,0.00019849,2]
[378009283,1754665880213,-476.53,0.00019849,2]
[378009284,1754665880222,-400.0,0.00019849,2]
[378009285,1754665880232,-593.67,0.00019849,2]
[378009286,1754665880241,-400.0,0.00019849,2]
[378009287,1754665880251,-400.0,0.00019849,2]
[378009288,1754665880260,-497.06,0.00019849,2]
[378009289,1754665880269,-151.0,0.00019849,2]
[378009290,1754665880278,-400.0,0.00019849,2]
[378009291,1754665880287,-504.76,0.00019849,2]
[378009292,1754665880297,-400.0,0.00019849,2]
[378009293,1754665880306,-400.0,0.00019849,2]
[378009294,1754665880316,-565.2,0.00019849,2]
[378009295,1754665880325,-400.0,0.00019849,2]
[378009296,1754665880335,-400.0,0.00019849,2]
[378009297,1754665880344,-400.0,0.00019849,2]
[378009298,1754665880353,-431.44488857,0.00019849,2]
[378009299,1754665880363,-400.0,0.00019849,2]
[378009300,1754665880372,-400.0,0.00019849,2]
[378009301,1754665880382,-596.46,0.00019849,2]
[378009302,1754665880391,-457.11,0.00019849,2]
[378009303,1754665880402,-428.78,0.00019849,2]
[378009304,1754665880412,-400.0,0.00019849,2]
[378009305,1754665880422,-400.0,0.00019849,2]
[378009306,1754665880431,-400.0,0.00019849,2]
[378009307,1754665880441,-456.55422102,0.00019849,2]
[378009308,1754665880451,-400.0,0.00019849,2]
[378009309,1754665880460,-400.0,0.00019849,2]
[378009310,1754665880471,-400.0,0.00019849,2]
[378009311,1754665880482,-1345.86,0.00019849,2]
[378009312,1754665880492,-632.06,0.00019849,2]
[378009313,1754665880501,-400.0,0.00019849,2]
[378009314,1754665880510,-400.0,0.00019849,2]
[378009315,1754665880519,-444.74,0.00019849,2]
[378009316,1754665880528,-400.0,0.00019849,2]
[378009317,1754665880539,-752.21,0.00019849,2]
[378009318,1754665880548,-400.0,0.00019849,2]
[378009319,1754665880558,-501.05,0.00019849,2]
[378009320,1754665880569,-420.23,0.00019849,2]
[378009321,1754665880578,-1263.68,0.00019849,2]
[378009322,1754665880588,-400.0,0.00019849,2]
[378009323,1754665880597,-400.0,0.00019849,2]
[378009324,1754665880606,-721.41,0.00019849,2]
[378009325,1754665880615,-450.92,0.00019849,2]
[378009326,1754665880624,-400.0,0.00019849,2]
[378009327,1754665880633,-420.59,0.00019849,2]
[378009328,1754665880645,-1220.4,0.00019849,2]
[378009329,1754665880654,-400.0,0.00019849,2]
[378009330,1754665880663,-189.35,0.00019849,2]
[378009331,1754665880672,-1284.62,0.00019849,2]
[378009332,1754665880682,-400.0,0.00019849,2]
[378009333,1754665880691,-476.8,0.00019849,2]
[378009334,1754665880700,-614.98,0.00019849,2]
[378009335,1754665880710,-1077.52,0.00019849,2]
[378009336,1754665880719,-400.0,0.00019849,2]
[378009337,1754665880729,-400.0,0.00019849,2]
[378009338,1754665880738,-616.12,0.00019849,2]
[378009339,1754665880747,-890.1,0.00019849,2]
[378009340,1754665880757,-1124.34,0.00019849,2]
[378009341,1754665880767,-400.0,0.00019849,2]
[378009342,1754665880991,-400.0,0.00019849,2]
[378009343,1754665881002,-400.0,0.00019849,2]
[378009344,1754665881011,-1039.6,0.00019849,2]
[378009345,1754665881020,-400.0,0.00019849,2]
[378009346,1754665881029,-400.0,0.00019849,2]
[378009347,1754665881039,-525.99,0.00019849,2]
[378009348,1754665881048,-400.0,0.00019849,2]
[378009349,1754665881058,-400.0,0.00019849,2]
[378009350,1754665881067,-400.0,0.00019849,2]
[378009351,1754665881079,-535.58,0.00019849,2]
[378009352,1754665881088,-1335.94,0.00019849,2]
[378009353,1754665881097,-4227.18,0.00019849,2]
[378009354,1754665881106,-457.02,0.00019849,2]
[378009355,1754665881115,-619.61,0.00019849,2]
[378009356,1754665881124,-400.0,0.00019849,2]
[378009357,1754665881133,-428.02,0.00019849,2]
[378009358,1754665881142,-400.0,0.00019849,2]
[378009359,1754665881152,-463.88,0.00019849,2]
[378009360,1754665881161,-400.0,0.00019849,2]
[378009361,1754665881170,-1072.18,0.00019849,2]
[378009362,1754665881179,-402.2,0.00019849,2]
[378009363,1754665881189,-558.58,0.00019849,2]
[378009364,1754665881199,-1273.16,0.00019849,2]
[378009365,1754665881209,-400.0,0.00019849,2]
[378009366,1754665881219,-757.14,0.00019849,2]
[378009367,1754665881229,-400.0,0.00019849,2]
[378009368,1754665881238,-300.0,0.00019849,2]
[378009369,1754665881246,-734.74,0.00019849,2]
[378009370,1754665881256,-400.0,0.00019849,2]
[378009371,1754665881265,-1247.21,0.00019849,2]
[378009372,1754665881274,-507.07,0.00019849,2]
[378009373,1754665881283,-400.0,0.00019849,2]
[378009374,1754665881293,-1774.87,0.00019849,2]
[378009375,1754665881302,-617.97,0.00019849,2]
[378009376,1754665881312,-400.0,0.00019849,2]
[378009377,1754665881324,-572.54,0.00019849,2]
[378009378,1754665881333,-400.0,0.00019849,2]
[378009379,1754665881342,-400.0,0.00019849,2]
[378009380,1754665881351,-1538.06,0.00019849,2]
[378009381,1754665881360,-582.05,0.00019849,2]
[378009382,1754665881369,-635.55,0.00019849,2]
[378009383,1754665881379,-474.97,0.00019849,2]
[378009384,1754665881388,-1285.93,0.00019849,2]
[378009385,1754665881397,-400.0,0.00019849,2]
[378009386,1754665881409,-407.06,0.00019849,2]
[378009387,1754665881418,-992.47,0.00019849,2]
[378009388,1754665881428,-400.0,0.00019849,2]
[378009389,1754665881437,-498.62,0.00019849,2]
[378009390,1754665881447,-468.72,0.00019849,2]
[378009391,1754665881458,-537.34,0.00019849,2]
[378009392,1754665881467,-685.13,0.00019849,2]
[378009393,1754665881478,-601.37,0.00019849,2]
[378009394,1754665881487,-1701.51,0.00019849,2]
[378009395,1754665881497,-426.2,0.00019849,2]
[378009396,1754665881506,-1148.86,0.00019849,2]
[378009397,1754665881516,-435.54,0.00019849,2]
[378009398,1754665881526,-627.73,0.00019849,2]
[378009399,1754665881535,-541.26,0.00019849,2]
[378009400,1754665881544,-400.0,0.00019849,2]
[378009401,1754665881553,-400.0,0.00019849,2]
[378009402,1754665881562,-544.69,0.00019849,2]
[378009403,1754665881572,-552.95,0.00019849,2]
[378009404,1754665881582,-556.11,0.00019849,2]
[378009405,1754665881591,-1662.34,0.00019849,2]
[378009406,1754665881600,-4395.77,0.00019849,2]
[378009407,1754665881609,-4291.86,0.00019849,2]
[378009408,1754665881618,-628.69,0.00019849,2]
[378009409,1754665881627,-1973.62,0.00019849,2]
[378009410,1754665881636,-485.2,0.00019849,2]
[378009411,1754665881649,-496.84,0.00019849,2]
[378009412,1754665881658,-1320.6,0.00019849,2]
[378009413,1754665881668,-400.0,0.00019849,2]
[378009414,1754665881677,-400.0,0.00019849,2]
[378009415,1754665881686,-1446.98,0.00019849,2]
[378009416,1754665881698,-1053.64,0.00019849,2]
[378009417,1754665881707,-1803.06,0.00019849,2]
[378009418,1754665881717,-2547.2,0.00019849,2]
[378009419,1754665881726,-430.11,0.00019849,2]
[378009420,1754665881736,-1665.08,0.00019849,2]
[378009421,1754665881745,-409.39,0.00019849,2]
[378009422,1754665881755,-400.0,0.00019849,2]
[378009423,1754665881764,-1820.22,0.00019849,2]
[378009424,1754665881773,-400.0,0.00019849,2]
[378009425,1754665881782,-400.0,0.00019849,2]
[378009426,1754665881791,-1417.64,0.00019849,2]
[378009427,1754665881801,-1595.52,0.00019849,2]
[378009428,1754665881811,-1789.44,0.00019849,2]
[378009429,1754665881822,-1552.56,0.00019849,2]
[378009430,1754665881831,-297.87193832,0.00019849,2]
[378009431,1754665881842,-1635.45,0.00019849,2]
[378009432,1754665881851,-1673.89,0.00019849,2]
[378009433,1754665881860,-400.0,0.00019849,2]
[378009434,1754665881869,-520.06,0.00019849,2]
[378009435,1754665881878,-1181.99,0.00019849,2]
[378009436,1754665881888,-6096.74,0.00019849,2]
[378009437,1754665881898,-1183.61,0.00019849,2]